bitfinex-derivatives/quotes_BTCF0:USTF0_20241221
["timestamp","ask_amount","ask_price","bid_price","bid_amount"]
[1734806610395,0.051285,97528.0,97525.0,0.051286]
[1734806610779,0.051285,97528.0,97526.0,0.052286]
[1734806611185,0.06158793,97528.0,97526.0,0.051286]
[1734806611401,0.051285,97528.0,97526.0,0.051286]
[1734806611588,0.06136335,97528.0,97526.0,0.051286]
[1734806612494,0.09166335,97528.0,97526.0,0.051286]
[1734806612993,0.09266335,97528.0,97526.0,0.052286]
[1734806615292,0.10298431,97528.0,97526.0,0.052286]
[1734806615592,0.09266335,97528.0,97526.0,0.052286]
[1734806615793,0.01107835,97528.0,97526.0,0.052286]
[1734806616491,0.001,97528.0,97526.0,0.052286]
[1734806631107,0.01031596,97527.0,97526.0,0.052286]
[1734806632502,0.01131596,97527.0,97526.0,0.052286]
[1734806632908,0.001,97527.0,97526.0,0.052286]
[1734806634503,0.01131596,97527.0,97526.0,0.052286]
[1734806634703,0.001,97527.0,97526.0,0.052286]
[1734806634908,0.01135136,97527.0,97526.0,0.052286]
[1734806635408,0.001,97527.0,97526.0,0.052286]
[1734806635610,0.0113562,97527.0,97526.0,0.052286]
[1734806640704,0.01124282,97527.0,97526.0,0.052286]
[1734806643308,0.01960522,97527.0,97526.0,0.052286]
[1734806643708,0.13375015,97527.0,97526.0,0.052286]
[1734806644012,0.13358749,97527.0,97526.0,0.052286]
[1734806644798,0.01108016,97527.0,97526.0,0.052286]
[1734806645506,0.01944535,97527.0,97526.0,0.052286]
[1734806645906,0.01108016,97527.0,97526.0,0.052286]
[1734806646809,0.001,97527.0,97526.0,0.052286]
[1734806648009,0.001,97527.0,97526.0,0.06268595]
[1734806648209,0.001,97527.0,97526.0,0.33995547]
[1734806648715,0.0113336,97527.0,97526.0,0.33995547]
[1734806649517,0.0113336,97527.0,97526.0,0.32955552]
[1734806649712,0.0113336,97527.0,97526.0,0.052286]
[1734806650614,0.0196993,97527.0,97526.0,0.052286]
[1734806650914,0.14241714,97527.0,97526.0,0.052286]
[1734806651315,0.14246873,97527.0,97526.0,0.052286]
[1734806651809,0.13412424,97527.0,97526.0,0.052286]
[1734806652712,0.14246937,97527.0,97526.0,0.052286]
[1734806653217,0.15272029,97527.0,97526.0,0.052286]
[1734806653608,0.14437516,97527.0,97526.0,0.052286]
[1734806654310,0.15246123,97527.0,97526.0,0.052286]
[1734806656020,0.02974339,97527.0,97526.0,0.052286]
[1734806658317,0.01949247,97527.0,97526.0,0.052286]
[1734806660722,0.01978023,97527.0,97526.0,0.052286]
[1734806663225,0.01974774,97527.0,97526.0,0.052286]
[1734806663830,0.01140261,97527.0,97526.0,0.052286]
[1734806665322,0.001,97527.0,97526.0,0.052286]
[1734806666228,0.01121185,97527.0,97526.0,0.052286]
[1734806667433,0.01954459,97527.0,97526.0,0.001]
[1734806669041,0.02999369,97527.0,97526.0,0.001]
[1734806669228,0.0301515,97527.0,97526.0,0.001]
[1734806669535,0.18311286,97527.0,97526.0,0.001]
[1734806670836,0.03015232,97527.0,97526.0,0.001]
[1734806671036,0.01970322,97527.0,97526.0,0.001]
[1734806671732,0.01132049,97527.0,97526.0,0.001]
[1734806672230,0.13404766,97527.0,97526.0,0.001]
[1734806673437,0.14237884,97527.0,97526.0,0.001]
[1734806673640,0.07093667,97527.0,97526.0,0.001]
[1734806674638,0.07097116,97527.0,97526.0,0.001]
[1734806675532,0.22393252,97527.0,97526.0,0.001]
[1734806675933,0.17264752,97527.0,97526.0,0.001]
[1734806676534,0.01968616,97527.0,97526.0,0.001]
[1734806677556,0.01135167,97527.0,97526.0,0.001]
[1734806677730,0.01969249,97527.0,97526.0,0.001]
[1734806677931,0.01966247,97527.0,97526.0,0.001]
[1734806679036,0.01132263,97527.0,97526.0,0.001]
[1734806679340,0.01966247,97527.0,97526.0,0.001]
[1734806679640,0.01965122,97527.0,97526.0,0.001]
[1734806680535,0.00933984,97527.0,97526.0,0.001]
[1734806681329,0.01962225,97527.0,97526.0,0.001]
[1734806685138,0.05122225,97527.0,97526.0,0.001]
[1734806686430,0.05120948,97527.0,97526.0,0.001]
[1734806686939,0.05126641,97527.0,97526.0,0.001]
[1734806687841,0.10112872,97527.0,97526.0,0.001]
[1734806688447,0.10110989,97527.0,97526.0,0.001]
[1734806689335,0.10109902,97527.0,97526.0,0.001]
[1734806692341,0.10111597,97527.0,97526.0,0.001]
[1734806695355,0.10088351,97527.0,97526.0,0.001]
[1734806695661,0.10088331,97527.0,97526.0,0.001]
[1734806696253,0.28464431,97527.0,97526.0,0.001]
[1734806697651,0.10088331,97527.0,97526.0,0.001]
[1734806698839,0.051021,97527.0,97526.0,0.001]
[1734806700249,0.10088331,97527.0,97526.0,0.001]
[1734806700646,0.15216831,97527.0,97526.0,0.001]
[1734806700877,0.15216902,97527.0,97526.0,0.001]
[1734806702648,0.33622836,97527.0,97526.0,0.001]
[1734806702960,0.33622836,97527.0,97512.0,0.18438706]
[1734806703169,0.05129,97519.0,97512.0,0.18438706]
[1734806703461,0.01843727,97518.0,97512.0,0.18438706]
[1734806703652,0.412093,97513.0,97512.0,0.18438706]
[1734806703853,0.43053027,97513.0,97512.0,0.18438706]
[1734806704159,0.43053027,97513.0,97502.0,0.05283632]
[1734806704160,0.051294,97510.0,97509.0,0.24586001]
[1734806704358,0.06973127,97510.0,97509.0,0.24586001]
[1734806704754,0.01843727,97510.0,97509.0,0.24586001]
[1734806705650,0.01843727,97510.0,97509.0,0.24686001]
[1734806706157,0.01878036,97510.0,97509.0,0.052295]
[1734806707262,0.01878036,97510.0,97509.0,0.054295]
[1734806707557,0.01878036,97510.0,97509.0,0.003]
[1734806708958,0.01883656,97510.0,97509.0,0.003]
[1734806709163,0.02083656,97510.0,97509.0,0.003]
[1734806709365,0.07071058,97510.0,97509.0,0.003]
[1734806710155,0.08112018,97510.0,97509.0,0.001]
[1734806711658,0.08108648,97510.0,97509.0,0.001]
[1734806711865,0.08108649,97510.0,97509.0,0.001]
[1734806712256,0.08108748,97510.0,97509.0,0.001]
[1734806714859,0.08108302,97510.0,97509.0,0.001]
[1734806716658,0.051303,97493.0,97492.0,0.36092659]
[1734806716961,0.06181246,97493.0,97492.0,0.36092659]
[1734806717564,0.08698436,97493.0,97492.0,0.00012659]
[1734806717958,0.08698436,97493.0,97492.0,0.00212659]
[1734806718164,0.11958436,97493.0,97492.0,0.00212659]
[1734806718969,0.11958436,97493.0,97492.0,0.00412659]
[1734806719358,0.1694688,97493.0,97492.0,0.00412659]
[1734806719559,0.05131,97481.0,97473.0,0.051314]
[1734806719760,0.44779136,97481.0,97473.0,0.051314]
[1734806720263,0.42261946,97481.0,97473.0,0.051314]
[1734806720464,0.42915387,97481.0,97473.0,0.051314]
[1734806720663,0.43975539,97481.0,97480.0,0.00653869]
[1734806721063,0.43975539,97481.0,97480.0,0.01253869]
[1734806721356,0.42279296,97481.0,97480.0,0.01253869]
[1734806722063,0.44800478,97481.0,97480.0,0.011]
[1734806722372,0.43975539,97481.0,97480.0,0.011]
[1734806722755,0.44988246,97481.0,97480.0,0.011]
[1734806723272,0.5447255,97481.0,97480.0,0.011]
[1734806723472,0.55540181,97481.0,97480.0,0.011]
[1734806723767,0.55540181,97481.0,97455.0,0.18432548]
[1734806723768,0.58070439,97481.0,97455.0,0.18432548]
[1734806723964,0.051322,97458.0,97455.0,0.18432548]
[1734806724266,0.00153935,97479.0,97455.0,0.18432548]
[1734806724267,0.01067631,97463.0,97455.0,0.18432548]
[1734806724565,0.051319,97464.0,97456.0,0.051322]
[1734806724772,0.051319,97463.0,97456.0,0.051322]
[1734806725875,0.06199531,97463.0,97456.0,0.051322]
[1734806726081,0.051319,97463.0,97456.0,0.051322]
[1734806726262,0.051319,97463.0,97452.0,0.0956]
[1734806726263,0.0107068,97463.0,97452.0,0.0956]
[1734806726470,0.051322,97458.0,97456.0,0.001]
[1734806727159,0.051322,97458.0,97456.0,0.002]
[1734806727561,0.051322,97458.0,97456.0,0.001]
[1734806727771,0.051322,97458.0,97456.0,0.002]
[1734806728362,0.06161052,97458.0,97456.0,0.002]
[1734806728564,0.06161052,97458.0,97456.0,0.001]
[1734806728762,0.07231732,97458.0,97456.0,0.001]
[1734806729064,0.0107068,97457.0,97456.0,0.001]
[1734806729558,0.0107068,97457.0,97456.0,0.002]
[1734806730164,0.0107068,97457.0,97456.0,0.001]
[1734806731064,0.0107068,97457.0,97456.0,0.052323]
[1734806731259,0.0107068,97463.0,97456.0,0.052323]
[1734806731569,0.0107068,97462.0,97457.0,0.083822]
[1734806731872,0.0107068,97461.0,97457.0,0.083822]
[1734806732072,0.0107068,97460.0,97457.0,0.051322]
[1734806732269,0.0107068,97459.0,97457.0,0.051322]
[1734806732466,0.0107068,97458.0,97457.0,0.051322]
[1734806732664,0.0107068,97462.0,97460.0,0.05132]
[1734806732973,0.0107068,97461.0,97460.0,0.05132]
[1734806733368,0.0107068,97461.0,97452.0,0.0324]
[1734806733369,0.0107068,97461.0,97457.0,0.001]
[1734806733574,0.051321,97459.0,97457.0,0.001]
[1734806733772,0.0107068,97458.0,97457.0,0.001]
[1734806734667,0.0429834,97458.0,97439.0,0.0311]
[1734806734866,0.051331,97441.0,97439.0,0.0311]
[1734806735577,0.051332,97439.0,97430.0,0.051336]
[1734806735966,0.051332,97439.0,97437.0,0.00153914]
[1734806736976,0.0620388,97439.0,97437.0,0.00153914]
[1734806737385,0.051332,97439.0,97437.0,0.00153914]
[1734806737568,0.06186379,97439.0,97437.0,0.00153914]
[1734806737773,0.051332,97439.0,97437.0,0.00153914]
[1734806738072,0.051332,97439.0,97438.0,0.00511461]
[1734806738872,0.052332,97439.0,97438.0,0.01311461]
[1734806739073,0.001,97439.0,97438.0,0.01311461]
[1734806739274,0.0115084,97439.0,97438.0,0.06444661]
[1734806739584,0.001,97439.0,97438.0,0.06444661]
[1734806741183,0.001,97439.0,97438.0,0.01311461]
[1734806741889,0.01149712,97439.0,97438.0,0.01311461]
[1734806743195,0.01141625,97439.0,97438.0,0.01311461]
[1734806743578,0.01141859,97439.0,97438.0,0.01311461]
[1734806745182,0.01142507,97439.0,97438.0,0.01311461]
[1734806746073,0.37222507,97439.0,97438.0,0.01311461]
[1734806746280,0.44553043,97439.0,97438.0,0.01311461]
[1734806746599,0.43510247,97439.0,97438.0,0.01311461]
[1734806746772,0.44553379,97439.0,97438.0,0.01311461]
[1734806746985,0.44553379,97439.0,97421.0,0.18432548]
[1734806746986,0.051332,97438.0,97421.0,0.18432548]
[1734806747283,0.3608,97426.0,97421.0,0.18432548]
[1734806747485,0.051341,97422.0,97421.0,0.18432548]
[1734806747686,0.051343,97417.0,97415.0,0.0322]
[1734806747891,0.01043132,97416.0,97415.0,0.0322]
[1734806749274,0.37223132,97416.0,97415.0,0.0412]
[1734806749474,0.3890521,97416.0,97415.0,0.0412]
[1734806749781,0.3890521,97416.0,97415.0,0.009]
[1734806750283,0.40020653,97416.0,97415.0,0.015]
[1734806750585,0.40838725,97416.0,97415.0,0.015]
[1734806750786,0.47068725,97416.0,97415.0,0.015]
[1734806751082,0.46977103,97416.0,97415.0,0.013]
[1734806751470,0.46977103,97416.0,97408.0,0.00153981]
[1734806751773,0.051347,97409.0,97408.0,0.00153981]
[1734806751974,0.08677982,97409.0,97408.0,0.00153981]
[1734806752370,0.0785991,97409.0,97408.0,0.00153981]
[1734806752777,0.08677982,97409.0,97408.0,0.00153981]
[1734806752977,0.06995904,97409.0,97408.0,0.00153981]
[1734806753280,0.06177832,97409.0,97408.0,0.00153981]
[1734806754188,0.06277832,97409.0,97408.0,0.00253981]
[1734806754383,0.06277832,97409.0,97408.0,0.00653981]
[1734806759090,0.06277832,97409.0,97408.0,0.005]
[1734806759091,0.42357832,97409.0,97408.0,0.005]
[1734806759980,0.42357832,97409.0,97408.0,0.004]
[1734806760180,0.051352,97401.0,97387.0,0.3608]
[1734806760386,0.06178332,97401.0,97397.0,0.051354]
[1734806760588,0.06178332,97401.0,97387.0,0.3608]
[1734806760589,0.06170921,97401.0,97387.0,0.3608]
[1734806760981,0.06170921,97401.0,97394.0,0.051355]
[1734806761282,0.01035721,97401.0,97399.0,0.051352]
[1734806761484,0.01435721,97401.0,97400.0,0.1318]
[1734806762394,0.06570921,97401.0,97400.0,0.1]
[1734806762689,0.06570499,97401.0,97400.0,0.1]
[1734806764797,0.06575478,97401.0,97400.0,0.1]
[1734806764990,0.07389725,97401.0,97400.0,0.1]
[1734806765293,0.06575478,97401.0,97400.0,0.1]
[1734806765493,0.07391739,97401.0,97400.0,0.1]
[1734806765696,0.06577492,97401.0,97400.0,0.1]
[1734806765896,0.07391739,97401.0,97400.0,0.1]
[1734806766087,0.06577492,97401.0,97400.0,0.1]
[1734806766306,0.07391739,97401.0,97400.0,0.1]
[1734806766489,0.06577492,97401.0,97400.0,0.1]
[1734806766687,0.07391739,97401.0,97400.0,0.1]
[1734806766888,0.06577492,97401.0,97400.0,0.1]
[1734806767088,0.07391739,97401.0,97400.0,0.1]
[1734806767295,0.06577492,97401.0,97400.0,0.1]
[1734806767481,0.07391739,97401.0,97400.0,0.1]
[1734806767687,0.06577492,97401.0,97400.0,0.1]
[1734806767893,0.07391739,97401.0,97400.0,0.1]
[1734806768093,0.06577492,97401.0,97400.0,0.1]
[1734806768298,0.07391739,97401.0,97400.0,0.1]
[1734806768499,0.07385178,97401.0,97400.0,0.1]
[1734806768996,0.02249978,97401.0,97400.0,0.1]
[1734806769184,0.01435731,97401.0,97400.0,0.1]
[1734806769691,0.01435731,97401.0,97400.0,0.1319]
[1734806769896,0.3608,97409.0,97408.0,0.051348]
[1734806770286,0.36898573,97409.0,97408.0,0.051348]
[1734806770996,0.37798573,97409.0,97408.0,0.051348]
[1734806771189,0.38298573,97409.0,97408.0,0.051348]
[1734806771696,0.3748,97409.0,97408.0,0.051348]
[1734806772398,0.014,97409.0,97408.0,0.051348]
[1734806773891,0.02220084,97409.0,97408.0,0.051348]
[1734806775199,0.07354784,97409.0,97405.0,0.0314]
[1734806775400,0.065347,97409.0,97405.0,0.0314]
[1734806775602,0.014,97409.0,97405.0,0.0314]
[1734806775806,0.014,97409.0,97407.0,0.051348]
[1734806776188,0.00820637,97408.0,97407.0,0.051348]
[1734806776800,0.00820806,97408.0,97407.0,0.051348]
[1734806776996,0.005,97409.0,97407.0,0.052348]
[1734806777204,0.09164047,97413.0,97412.0,0.051346]
[1734806777396,0.09986843,97413.0,97412.0,0.051346]
[1734806777789,0.09986521,97413.0,97412.0,0.051346]
[1734806777995,0.00822474,97413.0,97412.0,0.051346]
[1734806778399,0.01122474,97413.0,97412.0,0.051346]
[1734806778601,0.01122474,97413.0,97410.0,0.051347]
[1734806778790,0.00822474,97412.0,97410.0,0.051347]
[1734806778998,0.00822474,97411.0,97410.0,0.051347]
[1734806779299,0.00822474,97411.0,97410.0,0.06106394]
[1734806780206,0.00822474,97411.0,97410.0,0.24540937]
[1734806781007,0.01022474,97411.0,97410.0,0.24540937]
[1734806781407,8.378e-05,97416.0,97414.0,0.051345]
[1734806782307,8.378e-05,97416.0,97415.0,0.00971694]
[1734806782508,0.00208378,97416.0,97415.0,0.00971694]
[1734806783398,0.00908378,97416.0,97415.0,0.00971694]
[1734806784005,0.00208378,97416.0,97415.0,0.01271694]
[1734806784909,0.01009463,97422.0,97415.0,0.37351694]
[1734806785207,0.01009463,97427.0,97421.0,0.3608]
[1734806785501,0.09164047,97431.0,97429.0,0.051337]
[1734806785700,0.09164047,97431.0,97430.0,0.3608]
[1734806785909,0.0917637,97431.0,97430.0,0.3608]
[1734806786403,0.0917637,97431.0,97430.0,0.37051694]
[1734806786704,0.0917637,97431.0,97430.0,0.00971694]
[1734806787008,0.10185833,97431.0,97430.0,0.00971694]
[1734806787206,0.11009017,97431.0,97430.0,0.00971694]
[1734806787414,0.14209017,97431.0,97430.0,0.00971694]
[1734806787602,0.14509017,97431.0,97430.0,0.00971694]
[1734806787996,0.0504497,97431.0,97430.0,0.00971694]
[1734806788304,0.0594497,97431.0,97430.0,0.01071694]
[1734806788612,0.01921786,97431.0,97430.0,0.06205294]
[1734806789109,0.02321786,97431.0,97430.0,0.06305294]
[1734806789703,0.01843851,97431.0,97430.0,0.06105294]
[1734806789904,0.02943851,97431.0,97430.0,0.06205294]
[1734806790410,0.02543851,97431.0,97430.0,0.06205294]
[1734806790911,0.01821786,97431.0,97430.0,0.06205294]
[1734806792005,0.01621786,97431.0,97430.0,0.06205294]
[1734806792200,0.01821786,97431.0,97430.0,0.06205294]
[1734806793503,0.02643851,97431.0,97430.0,0.06205294]
[1734806793699,0.02643579,97431.0,97430.0,0.06205294]
[1734806794609,0.02643617,97431.0,97430.0,0.06205294]
[1734806796205,0.01821136,97431.0,97430.0,0.06205294]
[1734806796713,0.02343617,97431.0,97430.0,0.06105294]
[1734806796912,0.01521136,97431.0,97430.0,0.06105294]
[1734806797114,0.01021136,97431.0,97430.0,0.06105294]
[1734806797419,0.01134804,97431.0,97430.0,0.06105294]
[1734806797711,0.01844213,97431.0,97430.0,0.06105294]
[1734806797914,0.01221732,97431.0,97430.0,0.06774773]
[1734806798509,0.02044213,97431.0,97430.0,0.06774773]
[1734806799808,0.02047221,97431.0,97430.0,0.06774773]
[1734806800322,0.0122474,97431.0,97430.0,0.06774773]
[1734806800521,0.02048297,97431.0,97430.0,0.06774773]
[1734806800810,0.02055099,97431.0,97430.0,0.06774773]
[1734806802015,0.02055099,97431.0,97430.0,0.01641173]
[1734806802614,0.14295798,97431.0,97430.0,0.01641173]
[1734806803229,0.14296091,97431.0,97430.0,0.01641173]
[1734806804123,0.15301588,97431.0,97430.0,0.01641173]
[1734806804424,0.03061033,97431.0,97430.0,0.01641173]
[1734806806819,0.02055536,97431.0,97430.0,0.01641173]
[1734806808618,0.02053772,97431.0,97430.0,0.01641173]
[1734806809019,0.07188197,97431.0,97430.0,0.01641173]
[1734806809425,0.07188303,97431.0,97430.0,0.01641173]
[1734806809930,0.22489177,97431.0,97430.0,0.01641173]
[1734806810925,0.22489177,97431.0,97422.0,0.18403123]
[1734806810926,0.17355577,97431.0,97422.0,0.18403123]
[1734806811122,0.41214,97423.0,97422.0,0.18403123]
[1734806811333,0.4305638,97423.0,97422.0,0.18403123]
[1734806812420,0.4305638,97423.0,97422.0,0.18603123]
[1734806813029,0.48047599,97423.0,97422.0,0.002]
[1734806813423,0.48947599,97423.0,97422.0,0.002]
[1734806814028,0.49447599,97423.0,97422.0,0.001]
[1734806814828,0.49445926,97423.0,97422.0,0.001]
[1734806815432,0.43554707,97423.0,97421.0,0.051341]
[1734806815624,0.01840707,97422.0,97421.0,0.051341]
[1734806816934,0.02740707,97422.0,97421.0,0.052341]
[1734806817329,0.03240707,97422.0,97421.0,0.052341]
[1734806817831,0.03242571,97422.0,97421.0,0.052341]
[1734806818132,0.03243364,97422.0,97421.0,0.052341]
[1734806819033,0.03243364,97422.0,97421.0,0.001]
[1734806820136,0.08235088,97422.0,97421.0,0.001]
[1734806820621,0.08241299,97422.0,97421.0,0.001]
[1734806822635,0.08240028,97422.0,97421.0,0.001]
[1734806823532,0.08240028,97422.0,97403.0,0.05135]
[1734806823737,0.051351,97402.0,97400.0,0.28403123]
[1734806823929,0.06983404,97402.0,97400.0,0.28403123]
[1734806825340,0.06983404,97402.0,97400.0,0.1]
[1734806825638,0.06990528,97402.0,97401.0,0.00553977]
[1734806825857,0.06171072,97402.0,97401.0,0.004]
[1734806826039,0.06988927,97402.0,97401.0,0.004]
[1734806826238,0.06988927,97402.0,97401.0,0.002]
[1734806826540,0.07088927,97402.0,97401.0,0.002]
[1734806827645,0.08124079,97402.0,97401.0,0.002]
[1734806827825,0.08124079,97402.0,97400.0,0.1]
[1734806828031,0.37933827,97401.0,97400.0,0.1]
[1734806828331,0.01853123,97401.0,97400.0,0.151352]
[1734806828635,0.01036148,97401.0,97400.0,0.151352]
[1734806829043,0.01853123,97401.0,97400.0,0.151352]
[1734806829342,0.01953123,97401.0,97400.0,0.151352]
[1734806830436,0.38033123,97401.0,97400.0,0.151352]
[1734806830834,0.01953123,97401.0,97400.0,0.151352]
[1734806831547,0.11127122,97401.0,97400.0,0.151352]
[1734806831951,0.11127122,97401.0,97400.0,0.1]
[1734806832850,0.01953123,97401.0,97400.0,0.1]
[1734806833538,0.01952205,97401.0,97400.0,0.1]
[1734806833940,0.01951854,97401.0,97400.0,0.1]
[1734806836943,0.01952061,97401.0,97400.0,0.1]
[1734806838849,0.14184424,97401.0,97400.0,0.1]
[1734806839542,0.14194909,97401.0,97400.0,0.1]
[1734806839740,0.14194909,97401.0,97382.0,0.18403123]
[1734806839741,0.051361,97383.0,97382.0,0.18403123]
[1734806840050,0.06993047,97383.0,97382.0,0.18403123]
[1734806840244,0.06993047,97383.0,97375.0,9.035e-05]
[1734806840245,0.051363,97379.0,97378.0,0.18403123]
[1734806840552,0.06993247,97379.0,97378.0,0.18403123]
[1734806840855,0.06176878,97379.0,97378.0,0.18403123]
[1734806841146,0.43277544,97379.0,97368.0,0.30735898]
[1734806841363,0.412169,97369.0,97368.0,0.23682943]
[1734806841544,0.42257478,97369.0,97368.0,0.23682943]
[1734806842146,0.37120578,97369.0,97351.0,0.00068]
[1734806842340,0.3608,97356.0,97346.0,0.0658]
[1734806842540,0.01045637,97355.0,97346.0,0.0333]
[1734806842845,0.01045636,97354.0,97346.0,0.0333]
[1734806843153,0.01045636,97353.0,97346.0,0.0333]
[1734806843453,0.01045637,97355.0,97346.0,0.0333]
[1734806843454,0.051379,97349.0,97346.0,0.0333]
[1734806843748,0.09154131,97352.0,97346.0,0.0393]
[1734806843952,0.09154131,97352.0,97351.0,0.051378]
[1734806845557,0.001,97353.0,97351.0,0.051378]
[1734806845848,0.001,97352.0,97351.0,0.056378]
[1734806846753,0.001,97352.0,97351.0,0.059378]
[1734806847249,0.37125636,97369.0,97364.0,0.051371]
[1734806847558,0.01045636,97368.0,97365.0,0.0329]
[1734806847851,0.3608,97369.0,97365.0,0.0329]
[1734806848045,0.37103737,97369.0,97365.0,0.0329]
[1734806848245,0.381412,97369.0,97365.0,0.0329]
[1734806848445,0.01037463,97368.0,97365.0,0.0329]
[1734806848751,0.01075738,97369.0,97365.0,0.0329]
[1734806848947,0.05137,97367.0,97365.0,0.0329]
[1734806849449,0.06174463,97367.0,97365.0,0.0329]
[1734806849655,0.01037463,97368.0,97364.0,0.001]
[1734806849951,0.01037463,97367.0,97347.0,0.05138]
[1734806850144,0.51270733,97360.0,97346.0,0.39478]
[1734806850455,0.01037463,97359.0,97358.0,0.051374]
[1734806850644,0.01037463,97363.0,97358.0,0.051374]
[1734806850845,0.01037463,97369.0,97346.0,0.3941]
[1734806851046,0.09154131,97366.0,97346.0,0.3941]
[1734806851541,0.01034884,97365.0,97355.0,0.3608]
[1734806851746,0.09154131,97366.0,97364.0,0.051371]
[1734806852157,0.09154131,97366.0,97365.0,0.0942]
[1734806852451,0.01034884,97369.0,97367.0,0.051369]
[1734806852651,0.01034884,97368.0,97367.0,0.051369]
[1734806853351,0.01034884,97370.0,97367.0,0.051369]
[1734806853551,0.37114884,97371.0,97367.0,0.051369]
[1734806854150,0.00154108,97372.0,97370.0,0.051368]
[1734806854657,0.06325692,97372.0,97370.0,0.051368]
[1734806854852,0.05290808,97372.0,97370.0,0.051368]
[1734806855154,0.01034884,97371.0,97370.0,0.051368]
[1734806855452,0.06171684,97371.0,97365.0,0.0942]
[1734806855655,0.06171684,97370.0,97355.0,0.3608]
[1734806855857,0.01034884,97369.0,97367.0,0.051369]
[1734806856055,0.01034884,97368.0,97367.0,0.051369]
[1734806856755,0.01037906,97368.0,97367.0,0.051369]
[1734806858561,0.37117906,97368.0,97356.0,0.0604]
[1734806858860,0.051373,97361.0,97356.0,0.0604]
[1734806859044,0.01037906,97360.0,97356.0,0.0604]
[1734806859244,0.01037906,97359.0,97357.0,0.051375]
[1734806859444,0.15190733,97366.0,97357.0,0.051375]
[1734806859445,0.01037906,97358.0,97357.0,0.051375]
[1734806860062,0.01032116,97358.0,97357.0,0.051375]
[1734806860253,0.01032116,97358.0,97357.0,0.055375]
[1734806861551,0.01032116,97358.0,97357.0,0.057375]
[1734806862468,0.01032116,97368.0,97367.0,0.05137]
[1734806862764,0.06169016,97368.0,97367.0,0.05137]
[1734806864463,0.01032116,97368.0,97367.0,0.05137]
[1734806864766,0.10286247,97368.0,97367.0,0.05137]
[1734806865453,0.10291455,97368.0,97367.0,0.05137]
[1734806866167,0.01137324,97368.0,97367.0,0.05137]
[1734806866861,0.01951664,97368.0,97367.0,0.05137]
[1734806867063,0.01137324,97368.0,97367.0,0.05137]
[1734806867253,0.01951664,97368.0,97367.0,0.05137]
[1734806867565,0.11105795,97368.0,97367.0,0.05137]
[1734806868365,0.1111071,97368.0,97367.0,0.05137]
[1734806868665,0.01956579,97368.0,97367.0,0.05137]
[1734806868854,0.01956564,97368.0,97367.0,0.05137]
[1734806870867,0.01141332,97368.0,97367.0,0.05137]
[1734806872870,0.0197828,97368.0,97367.0,0.05137]
[1734806874357,0.01985115,97368.0,97367.0,0.05137]
[1734806874772,0.17242001,97368.0,97367.0,0.05137]
[1734806876573,0.06979078,97368.0,97367.0,0.05137]
[1734806877264,0.0802806,97368.0,97367.0,0.05137]
[1734806877873,0.03034097,97368.0,97367.0,0.05137]
[1734806879170,0.0802806,97368.0,97367.0,0.05137]
[1734806880173,0.08025003,97368.0,97356.0,0.3608]
[1734806880362,0.01882476,97367.0,97356.0,0.3608]
[1734806880564,0.01882476,97366.0,97356.0,0.3608]
[1734806880768,0.01885292,97365.0,97357.0,0.051375]
[1734806881071,0.01885292,97364.0,97363.0,0.051372]
[1734806882272,0.01885292,97364.0,97363.0,0.052372]
[1734806883470,0.01885292,97364.0,97363.0,0.053372]
[1734806885475,0.16346024,97368.0,97367.0,0.05137]
[1734806885680,0.18231727,97368.0,97367.0,0.05137]
[1734806886975,0.18331727,97368.0,97367.0,0.05137]
[1734806887376,0.17283163,97368.0,97367.0,0.05137]
[1734806887874,0.17283269,97368.0,97367.0,0.05137]
[1734806888379,0.01985809,97368.0,97367.0,0.05137]
[1734806890174,0.01985809,97368.0,97367.0,0.06166721]
[1734806890570,0.01985809,97368.0,97367.0,0.05137]
[1734806893669,0.0198459,97368.0,97367.0,0.05137]
[1734806894076,0.14233224,97368.0,97367.0,0.05137]
[1734806894383,0.15920381,97368.0,97367.0,0.05137]
[1734806895480,0.03670702,97368.0,97367.0,0.05137]
[1734806895684,0.03677199,97368.0,97367.0,0.05137]
[1734806896179,0.05059992,97368.0,97367.0,0.05137]
[1734806896582,0.04203718,97368.0,97367.0,0.05137]
[1734806896780,0.41118624,97368.0,97367.0,0.05137]
[1734806897078,0.41118624,97368.0,97352.0,0.30759531]
[1734806897268,0.051372,97363.0,97352.0,0.30759531]
[1734806897467,0.08358624,97362.0,97352.0,0.30759531]
[1734806897673,0.07005924,97361.0,97358.0,0.051374]
[1734806897984,0.051375,97358.0,97353.0,0.051377]
[1734806898180,0.051375,97356.0,97353.0,0.051377]
[1734806898381,0.01868624,97355.0,97353.0,0.051377]
[1734806898679,0.01868624,97354.0,97353.0,0.051377]
[1734806899472,0.01867579,97354.0,97353.0,0.051377]
[1734806900082,0.01867579,97354.0,97353.0,0.054377]
[1734806900284,0.01867579,97354.0,97353.0,0.059377]
[1734806900676,0.01867579,97354.0,97353.0,0.054377]
[1734806900872,0.01967579,97354.0,97353.0,0.059377]
[1734806902375,0.0196482,97354.0,97353.0,0.059377]
[1734806902887,0.01130874,97354.0,97353.0,0.059377]
[1734806903189,0.001,97354.0,97353.0,0.43027226]
[1734806903375,0.12225284,97358.0,97353.0,0.46920294]
[1734806903577,0.12225284,97358.0,97357.0,0.051375]
[1734806903777,0.1529746,97364.0,97357.0,0.03892974]
[1734806904080,0.0916797,97359.0,97358.0,0.09030374]
[1734806904271,0.0916797,97359.0,97358.0,0.45110374]
[1734806904570,0.0916797,97359.0,97358.0,0.75110374]
[1734806905380,0.00836218,97371.0,97358.0,1.05869905]
[1734806905587,0.0916797,97373.0,97370.0,0.412168]
[1734806905779,0.01858203,97371.0,97370.0,0.412168]
[1734806906779,0.01021988,97371.0,97370.0,0.412168]
[1734806906986,0.01221988,97371.0,97370.0,0.412168]
[1734806907286,0.0205809,97371.0,97370.0,0.412168]
[1734806908082,0.01958038,97371.0,97370.0,0.412168]
[1734806909473,0.01858038,97371.0,97370.0,0.412168]
[1734806909787,0.01858038,97371.0,97370.0,0.416168]
[1734806910577,0.01021936,97371.0,97370.0,0.416168]
[1734806910787,0.01029664,97371.0,97370.0,0.416168]
[1734806910981,0.01029664,97371.0,97370.0,0.415168]
[1734806911377,0.0916797,97375.0,97370.0,0.415168]